Cogmind - Beta 13 @@@ ROGUE MODE // 2024.05.15 @ 20:49:13 Player: Jay Result: Destroyed by H-61 Shepherd with Heavy Assault Cannon Performance ------------- Evolutions (2) 1000 Regions Visited (3) 600 Robots Destroyed (65) 325 Value Destroyed (2010) 2010 Prototype IDs (0) 0 Alien Tech Used (0) 0 Bonus (52) 52 TOTAL SCORE: 3987 Bonus ------- High Alert Combat Kills 52 Cogmind --------- Core Integrity 0/550 Matter 261/300 Energy 160/160 System Corruption 0% Temperature Cool (2) Movement Walking (330) Ox3 Location -8/Materials Parts ------- > --- POWER (2) -------- Light Nuclear Core > --- PROPULSION (3) --- Aluminum Leg > --- UTILITY (4) ------ Large Storage Unit Improved Targeting Computer System Shield > --- WEAPON (2) ------- Missile Launcher > --- INVENTORY (15) --- Aluminum Leg Aluminum Leg VSS Leg Improved Heat Sink Improved Heat Sink Signal Interpreter Improved Targeting Computer Shock Rifle Heavy EM Shotgun Heavy EM Shotgun Improved EM Pulse Cannon Improved EM Pulse Cannon Missile Launcher Peak State ------------ > --- POWER ------------ Light Nuclear Core Light Nuclear Core > --- PROPULSION ------- Aluminum Leg Aluminum Leg Aluminum Leg > --- UTILITY ---------- Improved Heat Sink Large Storage Unit Improved Targeting Computer System Shield > --- WEAPON ----------- Particle Gun Improved EM Pulse Cannon > --- INVENTORY -------- Light Nuclear Core Aluminum Leg Aluminum Leg Aluminum Leg Aluminum Leg Improved Heat Sink Improved Heat Sink Signal Interpreter Improved Targeting Computer Shock Rifle Heavy EM Shotgun Heavy EM Shotgun Improved EM Pulse Cannon Missile Launcher Missile Launcher [Rating: 27] Favorites ----------- Power Light Nuclear Core Engine Ion Engine Power Core Light Nuclear Core Propulsion Aluminum Leg Treads Light Treads Leg Aluminum Leg Utility Large Storage Unit Device Improved Heat Sink Storage Large Storage Unit Processor Machine Analyzer Hackware System Shield Protection Improved Light Armor Plating Weapon Assault Rifle Energy Gun Particle Gun Energy Cannon Improved EM Pulse Cannon Ballistic Gun Assault Rifle Ballistic Cannon Assault Cannon Launcher Missile Launcher Build | -11 -10 -9 -8 ------- Run | Yrd Mat Mat Mat Slots Evolved 4 | . . 2 2 Power 1 | . . . 1 Propulsion 1 | . . 1 . Utility 2 | . . 1 1 Weapon . | . . . . Parts Attached 60 | 2 5 12 41 Power 10 | 1 . 1 8 Engine 6 | 1 . 1 4 Core 4 | . . . 4 Reactor . | . . . . Propulsion 17 | . 2 6 9 Treads 8 | . 2 3 3 Leg 9 | . . 3 6 Wheel . | . . . . Hover . | . . . . Flight . | . . . . Utility 18 | 1 1 4 12 Device 3 | . . . 3 Storage 3 | 1 1 . 1 Processor 3 | . . . 3 Hackware 1 | . . . 1 Protection 8 | . . 4 4 Artifact . | . . . . Weapon 15 | . 2 1 12 Energy Gun 3 | . . . 3 Energy Cannon 1 | . . . 1 Ballistic Gun 6 | . 2 1 3 Ballistic Cannon 1 | . . . 1 Launcher 4 | . . . 4 Special Weapon . | . . . . Impact Weapon . | . . . . Slashing Weapon . | . . . . Piercing Weapon . | . . . . Special Melee Weapon . | . . . . Unidentified Prototypes . | . . . . Parts Lost 32 | . . 2 30 Power 6 | . . 1 5 Propulsion 7 | . . . 7 Utility 9 | . . . 9 Weapon 10 | . . 1 9 Highest Loss Streak 6 | . . 1 6 To Critical Strikes . | . . . . Average Slot Usage (%) 91 | . 81 96 91 Engine 9 | . 14 10 7 Core 6 | . . . 9 Treads 11 | . 26 12 8 Leg 13 | . . 17 14 Device 5 | . . . 8 Storage 10 | . 14 11 9 Processor 4 | . . . 6 Hackware 1 | . . . 3 Protection 10 | . . 21 7 Energy Gun 2 | . . . 3 Ballistic Gun 12 | . 26 21 5 Ballistic Cannon 1 | . . . 1 Launcher 2 | . . . 4 Naked Turns . | . . . . Heaviest Build 49 | 10 29 42 49 Greatest Support 60 | 3 40 60 60 Greatest Overweight (x) 3 | 3 3 1 1 Average Overweight (x) . | 2 . . . Largest Inventory Capacity 15 | 8 15 15 15 Average Capacity 14 | 7 14 15 15 Most Carried 15 | 6 6 15 15 Average Carried 10 | 4 2 10 11 Final Capacity 15 | 8 15 15 15 Final Carried 15 | 6 4 15 13 Class Distribution -------------------- 65% | Scavenger-Mutant 34% | Mutant Dominant Class ---------------- Mutant | -10/Materials Mutant | -9/Materials Scavenger-Mutant | -8/Materials Resources | -11 -10 -9 -8 ----------- Run | Yrd Mat Mat Mat Matter Collected 1988 | 191 68 418 1311 Remotely . | . . . . Salvage Created 2405 | . 68 575 1762 Parts 148 | . 4 48 96 Haulers Intercepted 1 | . . . 1 Recyclers Shooed . | . . . . Parts Field Recycled . | . . . . Retrieved Matter . | . . . . Parts Self-Destructed . | . . . . Prevented . | . . . . Kills | -11 -10 -9 -8 ------- Run | Yrd Mat Mat Mat Combat Hostiles Destroyed 48 | . 2 12 34 Guns 28 | . 2 12 14 Cannons 6 | . . . 6 AOE 14 | . . . 14 Classes Destroyed 11 | . 1 5 5 Worker 7 | . . 1 6 Builder 4 | . . . 4 Hauler 1 | . . . 1 Recycler 6 | . . 1 5 Watcher 5 | . . 3 2 Swarmer 4 | . . 4 . Grunt 34 | . 2 4 28 Duelist 1 | . . . 1 Sentry 4 | . . 4 . Specialist 4 | . . . 4 Hunter 1 | . . . 1 Best Kill Streak 7 | . 2 5 7 Combat Bots Only 5 | . 2 5 5 Max Kills in Single Turn 4 | . 1 1 4 Gunslinging . | . . . . Exploded 2 | . . . 2 Melee . | . . . . Uniques/NPCs Destroyed . | . . . . Combat | -11 -10 -9 -8 -------- Run | Yrd Mat Mat Mat Hostile Shots Fired 412 | . 8 84 320 Missed 106 | . 1 21 84 Damage Taken 4801 | . 76 756 3969 Core 640 | . . 58 582 Absorbed by Shields . | . . . . Redirected to Shielding 206 | . . . 206 Regen/Repaired (Parts) 102 | . . . 102 Core Remaining (%) 95 | 100 100 85 . Volleys Fired 198 | . 8 43 147 Largest 2 | . 2 2 2 Hottest 134 | . 40 43 134 Shots Fired 345 | . 16 83 246 Gun 264 | . 16 83 165 Cannon 47 | . . . 47 Launcher 34 | . . . 34 Special . | . . . . Kinetic 275 | . 16 83 176 Thermal 26 | . . . 26 Explosive 34 | . . . 34 Electromagnetic 10 | . . . 10 Robot Hit Streak 14 | . 3 9 14 Robot Miss Streak 5 | . 1 3 5 Penetration Max . | . . . . Secondary Targets 2 | . . 1 1 Max Gunslinging Chain 1 | . . 1 1 Shots Hit Robots 236 | . 10 59 167 Core Hits 129 | . 3 28 98 Critical Kills 1 | . . . 1 Critical Parts Destroyed . | . . . . Critical Strikes 3 | . . . 3 Burn 1 | . . . 1 Destroy 1 | . . . 1 Corrupt 1 | . . . 1 Melee Attacks . | . . . . Impact . | . . . . Slashing . | . . . . Piercing . | . . . . Sneak Attacks . | . . . . Combat Hostiles . | . . . . Follow-up Attacks . | . . . . Damage Inflicted 5903 | . 123 771 5009 Guns 2517 | . 123 771 1623 Cannons 754 | . . . 754 Explosions 2632 | . . . 2632 Melee . | . . . . Ramming . | . . . . Kinetic 2860 | . 123 771 1966 Thermal 284 | . . . 284 Explosive 2632 | . . . 2632 Electromagnetic 127 | . . . 127 Impact . | . . . . Slashing . | . . . . Piercing . | . . . . Highest Corruption . | . . . . Average Corruption . | . . . . Corruption Purged . | . . . . Corruption Blocked . | . . . . Overload Shots . | . . . . Overflow Damage 61 | . . . 61 Projectiles . | . . . . Explosions 61 | . . . 61 Melee . | . . . . Knockbacks 14 | . . . 14 Impact . | . . . . Kinetic 13 | . . . 13 Secondary 1 | . . . 1 Self-Inflicted Damage 176 | . . . 176 Shots 5 | . . . 5 Rammed . | . . . . Targets Rammed . | . . . . Kicked . | . . . . Crushed . | . . . . Highest Temperature 495 | . . 13 495 Average Temperature 140 | . . 4 145 Received Heat Transfer 2334 | . 42 249 2043 Effects 20 | . . . 20 Shutdowns 6 | . . . 6 Energy Bleed 3 | . . . 3 Matter Decay 3 | . . . 3 Short Circuit 1 | . . . 1 Damage (major) 7 | . . . 7 Siege Activations . | . . . . Robots Corrupted . | . . . . Combat Hostiles . | . . . . Parts Fried . | . . . . Impact Corruptions . | . . . . Robots Melted . | . . . . Combat Hostiles . | . . . . Parts Melted 1 | . . . 1 Heat Transferred 740 | . . . 740 Parts Sabotaged . | . . . . Parts Stolen . | . . . . Parts Stripped . | . . . . Power Chain Reactions . | . . . . Alert | -11 -10 -9 -8 ------- Run | Yrd Mat Mat Mat Peak Influence 477 | . 67 336 477 Initial 84 | . . 27 84 Average 193 | . 31 168 239 Maximum Alert Level 2 | . . 1 2 Low Security (%) 46 | 100 100 75 22 Level 1 51 | . . 25 74 Level 2 1 | . . . 2 Level 3 . | . . . . Level 4 . | . . . . Level 5 . | . . . . High Security . | . . . . Max Security . | . . . . Squads Dispatched 12 | . 1 1 10 Investigation 4 | . . . 4 Extermination . | . . . . Reinforcement 8 | . 1 1 6 Assault . | . . . . Garrison . | . . . . Intercept . | . . . . Searches Triggered . | . . . . Construction Impeded 2 | . . . 2 Haulers Reinforced . | . . . . Active Scanning Responses . | . . . . Cargo Convoy Interrupts . | . . . . Stealth | -11 -10 -9 -8 --------- Run | Yrd Mat Mat Mat Distress Signals 4 | . . 1 3 Communications Jammed . | . . . . Distress Signals . | . . . . Times Spotted 72 | . 4 24 44 Peak Tracking Total 5 | . 2 5 4 Tactical Retreats 2 | . . 2 . Traps | -11 -10 -9 -8 ------- Run | Yrd Mat Mat Mat Traps Triggered 1 | . . . 1 Indirectly . | . . . . Trap Hack Attempts . | . . . . Triggered . | . . . . Disarmed . | . . . . Reprogrammed . | . . . . Reused . | . . . . Traps Extracted . | . . . . Installed . | . . . . Triggered . | . . . . Machines | -11 -10 -9 -8 ---------- Run | Yrd Mat Mat Mat Machines Disabled 3 | . . . 3 Max in Single Turn 2 | . . . 2 Machines Repaired . | . . . . Machines Dismantled . | . . . . Machines Sabotaged . | . . . . Overloaded Fab Kills . | . . . . Hacking | -11 -10 -9 -8 --------- Run | Yrd Mat Mat Mat Machines Accessed 8 | . 2 2 4 Terminals 5 | . 1 2 2 Fabricators . | . . . . Repair Stations 1 | . . . 1 Recycling Units 1 | . 1 . . Scanalyzers 1 | . . . 1 Garrison Access . | . . . . Total Hacks 27 | . 3 6 18 Successful 18 | . 2 4 12 Failed 9 | . 1 2 6 Catastrophic 2 | . . 1 1 Database Lockouts . | . . . . Manual . | . . . . Terminals 16 | . 2 6 8 Fabricators . | . . . . Repair Stations 5 | . . . 5 Recycling Units 1 | . 1 . . Scanalyzers 5 | . . . 5 Garrison Access . | . . . . Terminal Hacks 11 | . 1 4 6 Record 9 | . 1 3 5 Robot Analysis 1 | . . . 1 Branch Access Points 1 | . . 1 . Fabricator Hacks . | . . . . Repair Station Hacks 2 | . . . 2 Scan Component 1 | . . . 1 Repair 1 | . . . 1 Recycling Unit Hacks 1 | . 1 . . Process 1 | . 1 . . Scanalyzer 4 | . . . 4 Insert Component 2 | . . . 2 Analyze 2 | . . . 2 Garrison Access Hacks . | . . . . Unauthorized Hacks . | . . . . Terminals . | . . . . Fabricators . | . . . . Repair Stations . | . . . . Recycling Units . | . . . . Scanalyzers . | . . . . Garrison Access . | . . . . Data Cores Recovered . | . . . . Used . | . . . . Hacking Detections 5 | . . 1 4 Full Trace Events 3 | . . . 3 Feedback Events . | . . . . Feedback Blocked . | . . . . Robot Schematics Acquired . | . . . . Robots Built . | . . . . Authchips . | . . . . Time . | . . . . Total Robot Build Rating . | . . . . Part Schematics Acquired 2 | . . . 2 Parts Built . | . . . . Authchips . | . . . . Time . | . . . . Total Part Build Rating . | . . . . Parts Repaired 1 | . . . 1 Time 13 | . . . 13 Parts Recycled . | . . . . Recycled Matter . | . . . . Retrieved Matter . | . . . . Retrieved Components . | . . . . Parts Scanalyzed 2 | . . . 2 Part Schematics Acquired 2 | . . . 2 Parts Damaged . | . . . . Bothacking | -11 -10 -9 -8 ------------ Run | Yrd Mat Mat Mat Used RIF Installer . | . . . . Robots Hacked . | . . . . Non-combat . | . . . . Combat . | . . . . Robot Hacks Applied . | . . . . Relay Couplers Released . | . . . . Fabnet Peak Effective % . | . . . . Robots Rewired . | . . . . Allies Hacked . | . . . . Hacks Repelled . | . . . . Allies | -11 -10 -9 -8 -------- Run | Yrd Mat Mat Mat Total Allies . | . . . . Largest Group . | . . . . Highest-Rated Group . | . . . . Highest-Rated Ally . | . . . . Total Orders . | . . . . Ally Attacks . | . . . . Total Damage . | . . . . Kills . | . . . . Allies Corrupted . | . . . . Allies Melted . | . . . . Intel | -11 -10 -9 -8 ------- Run | Yrd Mat Mat Mat Robot Analysis Total 1 | . . . 1 Derelict Logs Recovered . | . . . . Drone Launches . | . . . . Drone Recoveries . | . . . . Exploration | -11 -10 -9 -8 ------------- Run | Yrd Mat Mat Mat Turns Passed 3085 | 80 305 848 1852 Spaces Moved 1093 | 45 89 332 627 Core 55 | 45 10 . . Treads 500 | . 79 189 232 Legs 538 | . . 143 395 Wheels . | . . . . Hover . | . . . . Flight . | . . . . Fastest Speed 50 | 50 160 120 160 Average Speed 186 | 160 164 172 199 Slowest Speed 240 | 200 200 190 240 Overloaded Moves . | . . . . Propulsion Burnouts . | . . . . Robots Hopped . | . . . . Cave-ins Triggered . | . . . . Exploration Rate (%) 23 | 4 19 32 38 Regions Visited 3 Branch Regions . Pre-discovered Areas . | . . . . Known Exits Taken . | . . . . Unknown Exits Taken 3 | 1 1 1 . Scrap Searched . | . . . . Spaces Dug . | . . . . Terrain Destroyed 191 | . . . 191 Melee . | . . . . Projectile 7 | . . . 7 AOE 184 | . . . 184 Terrain Rammed . | . . . . Walls Destroyed . | . . . . Machines Disabled . | . . . . Actions | -11 -10 -9 -8 --------- Run | Yrd Mat Mat Mat Total 1807 | 53 232 526 996 Wait 369 | . 127 112 130 Move 1090 | 44 88 331 627 Hop . | . . . . Pick Up 69 | 7 3 21 38 Fast Attach 3 | 1 . 2 . Attach 51 | 1 5 10 35 Detach . | . . . . Swap 6 | . . . 6 Drop 21 | . 1 7 13 Fire 198 | . 8 43 147 Melee . | . . . . Ram . | . . . . Kick . | . . . . Crush . | . . . . Escape Stasis . | . . . . Rewire . | . . . . Trap . | . . . . Miscellaneous . | . . . . Route ------- -11/Scrapyard -10/Materials -9/Materials (discovered 3 exits: *Mat / *Min x2) -8/Materials (discovered 1 exit: [*Fac]) History --------- Turn | Location | Event 24 | -11/Scrapyard | Discovered new exit (range 16) 81 | -11/Scrapyard | Entered Materials 311 | -10/Materials | Build established: Mutant 355 | -10/Materials | Discovered new exit (range 16) 386 | -10/Materials | Entered another Materials area 386 | -9/Materials | Evolved 2 slots: Propulsion x1, Utility x1 741 | -9/Materials | Identified exit to Mines 1231 | -9/Materials | Discovered new exit (range 3) 1234 | -9/Materials | Entered another Materials area 1234 | -8/Materials | Evolved 2 slots: Power x1, Utility x1 1327 | -8/Materials | Build established: Scavenger-Mutant 1404 | -8/Materials | Lost 6 parts (1p2n2u1w) 1756 | -8/Materials | Lost 6 parts (1p2u3w) 1897 | -8/Materials | Repaired Lgt. Treads 1948 | -8/Materials | Core integrity fell below 50% 2434 | -8/Materials | Core integrity fell below 20% 3056 | -8/Materials | Discovered new exit (range 11) 3086 | -8/Materials | Destroyed by H-61 Shepherd with Heavy Assault Cannon Last Messages --------------- 03056_ EXIT=FOUND 03057_ Critical hit (Burn: +37). 03057_ Penetrated by Slug. 03057_ U-05 Engineer lays Concrete. 03058_ The unstable cave ceiling collapses. 03059_ U-05 Engineer builds a Wall. 03059_ Imp. Heat Sink destroyed. 03060_ Aluminum Leg destroyed. 03060_ Penetrated by Slug. 03063_ U-05 Engineer destroyed. 03066_ X-62 Marksman destroyed. 03067_ The unstable cave ceiling collapses. 03071_ Particle Gun destroyed. 03072_ G-47 Trooper destroyed. 03079_ The unstable cave ceiling collapses. 03082_ Aluminum Leg destroyed. 03082_ Knocked back. 03083_ Acquired 6 matter. 03086_ Aluminum Leg destroyed. 03086_ Lgt. Nuclear Core destroyed. Map ----- +----------------------------------------------------+ | | | | | | | | | | | | | | | ###########??????????????????????????????????????? | | # "T" #????????########??????????????????????? | | # #????????#]]!!!!#??????????????????????? | | # #????????# !!!!#??????????????????????? | | # ]#????????# **#??????????????????????? | | #####+############## ###??????????????????????? | | #????????????????????????? | | ################??????####??????????????? | | ######???????????????? #??????????????? | | ]][ = ########???????? #??????????????? | | ][[ ??????? +??????????????? | | ###########???? H= #??????????????? | | % ## ##### #??????????????? | | # # # ##???????????????? | | ! == ######??????????? | | ! !% %!% a| = = [! #??????????? | | % ##### = * =** ! [<% ! #??????????? | | *%%###### % %= = ""???????????? | | %####### # ; @ ! + Y"???????????? | | """ # ## # ## #?????????????????? | | """ %# ########[ % #?????????????????? | | """ # """ #??????##### ## #?????????????????? | | %# """ #?????????? #? #????????????????? | | + """ #????"""?""" #?? ???????????????? | | = #! #????"""?""" +??? ?????????????? | | =!#########???"""?""" #???? ????????????? | | ##T## # #???"""?""" #?????######???????????? | | ##### # #????????? #??????????????????????? | | #?### # #????????? #??????????????????????? | | ### # ! #?????????###??????????????????????? | | ### + #??????????????????????????????????? | | # # # #??????????????????????????????????? | | # # # #??????????????????????????????????? | | # # # #??????????????????????????????????? | | # # # #??????????????????????????????????? | | # # + #??????????????????????????????????? | | ### # #??????????????????????????????????? | | ### ###+########???????????????????????????????? | | ### # ## #???????????????????????????????? | | ### # ## """ #???????????????????????????????? | | # # ## """ #???????????????????????????????? | | # # ## """ #???????????????????????????????? | | ### ## #???????????????????????????????? | +----------------------------------------------------+ Best States ------------- Heat Dissipation 45 Energy Generation 23 Energy Capacity 325 Matter Stores 300 Matter Capacity 300 Sight Range 16 Robot Scan Range 14 Terrain Scan Density 10 Armor Coverage 450 Propulsion Shielding 66 Evasion (%) 40 Targeting Accuracy 6 Recoil Reduction 3 Defensive Hacking 10 Item Schematics ----------------- Imp. Ion Engine | -8/Materials | Scanalyzed Aluminum Leg | -8/Materials | Scanalyzed Robot Schematics ------------------ None Fabricated ------------ Nothing Alien Tech Used ----------------- None Achievements -------------- None Challenges ------------ None Game ------ Seed StructuralImprinterGuard Manual? 0 Play Time 00:41:20 Cumulative 38.2 hours Start 2024.04.24 @ 21:07:36 End 2024.05.15 @ 20:49:13 Sessions 7 Manual Loads 0 Difficulty Rogue Special Mode None Game No. 67 Rogue 55 Adventurer 12 Explorer 0 Win Type - Total 0 Types 0/0/0/0/0/0/0/0/0 Lore% 13 Gallery% 24 Achievement% 19 Wizard Run 0 Options --------- Layout 0 ASCII 0 Keyboard 0 Movement Mouse Keybinds 0 Fullscreen 2 Font 18/SmallcapsGlow Map View 76x50 Zoom Use 82% Tactical HUD 1 Map Filters NONE Filters NONE Steam 1 RUN: e23fdbee-ff3e-4eaa-9e7a-27cd8c92dbee